fUSD/lending_fUSD_20260128
["ID","MTS","AMOUNT","RATE_DAILY","PERIOD"]
[403865116,1769608247828,-5413.0,0.00018716,2]
[403865117,1769608247837,-224.89,0.00018772,2]
[403865118,1769608247847,-5413.0,0.00018784,2]
[403865119,1769608247857,-5413.0,0.00018821,2]
[403865120,1769608247867,-5413.0,0.00018841,2]
[403865121,1769608247876,-500.0,0.00019178,2]
[403865122,1769608247891,-500.0,0.00019178,2]
[403865123,1769608247902,-500.0,0.00019178,2]
[403865124,1769608247913,-500.0,0.00019178,2]
[403865125,1769608247923,-570.27863892,0.00019178,2]
[403865126,1769608247933,-204.7422275,0.00019292,2]
[403865127,1769608247943,-224.89,0.00019523,2]
[403865128,1769608247954,-10754.82226316,0.00020248,2]
[403865129,1769608247965,-224.89,0.00020274,2]
[403865130,1769608247975,-150.0,0.00021,7]
[403865131,1769608247985,-274.61634767,0.00021121,2]
[403865132,1769608247994,-6380.31,0.0002137,2]
[403865133,1769608248004,-3743.82616473,0.00021685,2]
[403865134,1769608248013,-500.0,0.00021973,2]
[403865135,1769608248024,-500.0,0.00021973,2]
[403865136,1769608248034,-253.77857241,0.00021973,2]
[403865137,1769608248045,-159.95483821,0.00021973,2]
[403865138,1769608248056,-512.07559774,0.00021973,2]
[403865139,1769608248067,-500.0,0.00021973,2]
[403865140,1769608248077,-500.0,0.00021973,2]
[403865141,1769608248086,-208.58,0.00022,7]
[403865142,1769608248096,-2446.54693669,0.00022176,2]
[403865143,1769608248105,-150.0,0.00022247,2]
[403865144,1769608248115,-289.91292763,0.00022247,2]
[403865145,1769608248124,-500.0,0.00022247,2]
[403865146,1769608248134,-500.0,0.00022247,2]
[403865147,1769608248144,-500.0,0.00022247,2]
[403865148,1769608248153,-500.0,0.00022247,2]
[403865149,1769608248163,-500.0,0.00022247,2]
[403865150,1769608248172,-500.0,0.00022247,2]
[403865151,1769608248181,-500.0,0.00022247,2]
[403865152,1769608248191,-500.0,0.00022247,2]
[403865153,1769608248200,-500.0,0.00022247,2]
[403865154,1769608248210,-500.0,0.00022247,2]
[403865155,1769608248219,-500.0,0.00022247,2]
[403865156,1769608248230,-150.0,0.00022302,2]
[403865157,1769608248239,-500.0,0.00022302,2]
[403865158,1769608248249,-500.0,0.00022302,2]
[403865159,1769608248259,-500.0,0.00022302,2]
[403865160,1769608248268,-500.0,0.00022302,2]
[403865161,1769608248278,-500.0,0.00022302,2]
[403865162,1769608248287,-500.0,0.00022302,2]
[403865163,1769608248297,-500.0,0.00022302,2]
[403865164,1769608248307,-500.0,0.00022302,2]
[403865165,1769608248317,-500.0,0.00022302,2]
[403865166,1769608248327,-500.0,0.00022302,2]
[403865167,1769608248337,-500.0,0.00022302,2]
[403865168,1769608248346,-150.0,0.00022357,2]
[403865169,1769608248356,-545.41720599,0.00022357,2]
[403865170,1769608248366,-449.0,0.00022357,2]
[403865171,1769608248375,-500.0,0.00022357,2]
[403865172,1769608248385,-602.887661,0.00022357,2]
[403865173,1769608248395,-500.0,0.00022357,2]
[403865174,1769608248404,-500.0,0.00022357,2]
[403865175,1769608248414,-350.0,0.00022357,2]
[403865176,1769608248424,-265.19440411,0.00022357,2]
[403865177,1769608248434,-500.0,0.00022357,2]
[403865178,1769608248448,-500.0,0.00022357,2]
[403865179,1769608248457,-500.0,0.00022357,2]
[403865180,1769608248468,-166.03176352,0.00022411,2]
[403865181,1769608248479,-500.0,0.00022411,2]
[403865182,1769608248488,-405.0,0.00022411,2]
[403865183,1769608248498,-500.0,0.00022411,2]
[403865184,1769608248508,-500.0,0.00022411,2]
[403865185,1769608248518,-500.0,0.00022466,2]
[403865186,1769608248528,-500.0,0.00022466,2]
[403865187,1769608248538,-500.0,0.00022466,2]
[403865188,1769608248547,-1000.0,0.00022521,2]
[403865189,1769608248564,-501.02318751,0.00022521,2]
[403865190,1769608248575,-1000.0,0.00022521,2]
[403865191,1769608248585,-546.0,0.00022521,2]
[403865192,1769608248596,-500.0,0.00022521,2]
[403865193,1769608248606,-311.0,0.00022521,2]
[403865194,1769608248617,-500.0,0.00022576,2]
[403865195,1769608248628,-350.0,0.00022631,2]
[403865196,1769608248638,-485.14441319,0.00023068,2]
[403865197,1769608248648,-1500.0,0.00023068,2]
[403865198,1769608248659,-10754.82226316,0.00023514,2]
[403865199,1769608248668,-545.19262454,0.0002361,2]
[403865200,1769608248679,-2000.0,0.00023616,2]
[403865201,1769608248689,-150.0024331,0.00023895,22]
[403865202,1769608248699,-2500.0,0.00024164,2]
[403865203,1769608248709,-351.6802899,0.00024274,7]
[403865204,1769608248720,-2000.0,0.00024712,2]
[403865205,1769608248730,-928.08984917,0.00024774,7]
[403865206,1769608248740,-2000.0,0.00024934,2]
[403865207,1769608248750,-721.12765534,0.00024934,2]
[403865208,1769608248760,-2000.0,0.00024934,2]
[403865209,1769608248770,-500.0,0.00024934,2]
[403865210,1769608248780,-2000.0,0.00024934,2]
[403865211,1769608248790,-500.0,0.00024934,2]
[403865212,1769608248800,-2000.0,0.00024934,2]
[403865213,1769608248810,-500.0,0.00024934,2]
[403865214,1769608248820,-500.0,0.00024934,2]
[403865215,1769608248830,-500.0,0.00024934,2]
[403865216,1769608248840,-578.20924309,0.00024934,2]
[403865217,1769608248849,-2000.0,0.00024934,2]
[403865218,1769608248859,-2000.0,0.00024934,2]
[403865219,1769608248869,-2000.0,0.00024934,2]
[403865220,1769608248878,-1101.29429659,0.00024934,2]
[403865221,1769608248887,-2000.0,0.00024934,2]
[403865222,1769608248897,-500.0,0.00024934,2]
[403865223,1769608248907,-2000.0,0.00024934,2]
[403865224,1769608248919,-2000.0,0.00024934,2]
[403865225,1769608248929,-500.0,0.00024934,2]
[403865226,1769608248940,-2000.0,0.00024934,2]
[403865227,1769608248950,-500.0,0.00024934,2]
[403865228,1769608248959,-2000.0,0.00024934,2]
[403865229,1769608248969,-500.0,0.00024934,2]
[403865230,1769608248979,-2000.0,0.00024934,2]
[403865231,1769608248990,-500.0,0.00024934,2]
[403865232,1769608249001,-322.6107,0.00024934,2]
[403865233,1769608249011,-522.5850038,0.00024934,2]
[403865234,1769608249020,-854.2589148,0.00024934,2]
[403865235,1769608249031,-174.61919142,0.00024934,2]
[403865236,1769608249041,-3000.0,0.00024934,2]
[403865237,1769608249051,-3000.0,0.00024934,2]
[403865238,1769608249062,-3000.0,0.00024934,2]
[403865239,1769608249075,-3000.0,0.00024934,2]
[403865240,1769608249085,-3000.0,0.00024934,2]
[403865241,1769608249096,-3000.0,0.00024934,2]
[403865242,1769608249107,-500.0,0.00024934,2]
[403865243,1769608249117,-2000.0,0.00024934,2]
[403865244,1769608249128,-3000.0,0.00024934,2]
[403865245,1769608249141,-500.0,0.00024934,2]
[403865246,1769608249151,-2000.0,0.00024934,2]
[403865247,1769608249161,-3000.0,0.00024934,2]
[403865248,1769608249171,-500.0,0.00024934,2]
[403865249,1769608249182,-2000.0,0.00024934,2]
[403865250,1769608249192,-3000.0,0.00024934,2]
[403865251,1769608249203,-500.0,0.00024934,2]
[403865252,1769608249214,-2000.0,0.00024934,2]
[403865253,1769608249229,-3000.0,0.00024934,2]
[403865254,1769608249239,-500.0,0.00024934,2]
[403865255,1769608249249,-2000.0,0.00024934,2]
[403865256,1769608249259,-3000.0,0.00024934,2]
[403865257,1769608249268,-500.0,0.00024934,2]
[403865258,1769608249278,-2000.0,0.00024934,2]
[403865259,1769608249288,-500.0,0.00024934,2]
[403865260,1769608249297,-2000.0,0.00024934,2]
[403865261,1769608249307,-500.0,0.00024934,2]
[403865262,1769608249316,-500.0,0.00024934,2]
[403865263,1769608249326,-2000.0,0.00024934,2]
[403865264,1769608249335,-500.0,0.00024934,2]
[403865265,1769608249345,-500.0,0.00024934,2]
[403865266,1769608249354,-2000.0,0.00024934,2]
[403865267,1769608249367,-500.0,0.00024934,2]
[403865268,1769608249376,-2000.0,0.00024934,2]
[403865269,1769608249386,-500.0,0.00024934,2]
[403865270,1769608249562,-2000.0,0.00024934,2]
[403865271,1769608249572,-500.0,0.00024934,2]
[403865272,1769608249582,-500.0,0.00024934,2]
[403865273,1769608249594,-179.7201173,0.00024934,2]
[403865274,1769608249603,-500.0,0.00024934,2]
[403865275,1769608249611,-500.0,0.00024934,2]
[403865276,1769608249621,-500.0,0.00024934,2]
[403865277,1769608249631,-500.0,0.00024934,2]
[403865278,1769608249641,-500.0,0.00024934,2]
[403865279,1769608249650,-500.0,0.00024934,2]
[403865280,1769608249659,-500.0,0.00024934,2]
[403865281,1769608249668,-500.0,0.00024934,2]
[403865282,1769608249678,-500.0,0.00024934,2]
[403865283,1769608249687,-500.0,0.00024934,2]
[403865284,1769608249696,-500.0,0.00024934,2]
[403865285,1769608249705,-500.0,0.00024934,2]
[403865286,1769608249714,-500.0,0.00024934,2]
[403865287,1769608249724,-500.0,0.00024934,2]
[403865288,1769608249734,-500.0,0.00024934,2]
[403865289,1769608249743,-403.67529487,0.00024934,2]
[403865290,1769608249753,-209.40437684,0.00024934,2]
[403865291,1769608249762,-500.0,0.00024934,2]
[403865292,1769608249771,-500.0,0.00024934,2]
[403865293,1769608249780,-500.0,0.00024934,2]
[403865294,1769608249790,-500.0,0.00024934,2]
[403865295,1769608249801,-500.0,0.00024934,2]
[403865296,1769608249810,-213.26870472,0.00024966,2]
[403865297,1769608249820,-217.15233878,0.00024989,2]
[403865298,1769608249829,-225.18697532,0.00025044,2]
[403865299,1769608249839,-233.51889341,0.00025099,2]
[403865300,1769608249849,-242.15909246,0.00025154,2]
[403865301,1769608249860,-800.0,0.0002516,9]
[403865302,1769608249871,-815.51431432,0.0002516,9]
[403865303,1769608249882,-502.0,0.00025178,2]
[403865304,1769608249891,-251.11897888,0.00025209,2]
[403865305,1769608249902,-260.4103811,0.00025264,2]
[403865306,1769608249913,-150.0024331,0.00025315,27]
[403865307,1769608249927,-270.0455652,0.00025319,2]
[403865308,1769608249937,-280.03725112,0.00025374,2]
[403865309,1769608249947,-290.39862941,0.00025429,2]
[403865310,1769608249959,-885.86649465,0.00025482,2]
[403865311,1769608249969,-301.1433787,0.00025484,2]
[403865312,1769608249981,-322.6107,0.00026303,2]
[403865313,1769608249990,-2446.54693669,0.00026407,2]
[403865314,1769608250000,-150.0024331,0.00026736,31]
[403865315,1769608250010,-10754.82226316,0.0002678,2]
[403865316,1769608250019,-507.0,0.00026857,10]
[403865317,1769608250029,-3743.82616473,0.00027097,2]
[403865318,1769608250038,-2000.0,0.00027397,2]
[403865319,1769608250048,-300.0,0.00027397,2]
[403865320,1769608250057,-500.0,0.00027699,2]
[403865321,1769608250066,-7967.67,0.00027718,2]
[403865322,1769608250075,-165.88,0.00028493,2]
[403865323,1769608250083,-274.61634767,0.00028525,2]
[403865324,1769608250093,-299.51921242,0.00028525,2]
[403865325,1769608250102,-545.19262454,0.00028557,2]
[403865326,1769608250110,-2000.0,0.00028767,12]
[403865327,1769608250119,-1306.78924631,0.00029,2]
[403865328,1769608250129,-150.0024331,0.00029576,39]
[403865329,1769608250138,-397.16,0.000296,14]
[403865330,1769608250147,-10754.82226316,0.00030046,2]
[403865331,1769608250156,-2000.0,0.00030136,22]
[403865332,1769608250165,-2446.54693669,0.00030638,2]
[403865333,1769608250175,-1863.66216343,0.00031506,32]
[403865334,1769608250183,-311.74,0.00031618,2]
[403865335,1769608250192,-3743.82616473,0.00032508,2]
[403865336,1769608250201,-476.48880159,0.00032877,7]
[403865337,1769608250210,-9328.93705952,0.00033312,2]
[403865338,1769608250220,-10754.82226316,0.00033312,2]
[403865339,1769608250230,-1381.9,0.000334,14]
[403865340,1769608250239,-515.26,0.000334,14]
[403865341,1769608250248,-376.73,0.000334,2]
[403865342,1769608250258,-545.19262454,0.00033504,2]
[403865343,1769608250267,-150.0024333,0.00033837,51]
[403865344,1769608250276,-2446.54693669,0.00034869,2]
[403865345,1769608250285,-169.05019004,0.00035257,55]
[403865346,1769608250295,-500.0,0.00035616,7]
[403865347,1769608250304,-500.0,0.00035616,7]
[403865348,1769608250313,-500.0,0.00035616,7]
[403865349,1769608250322,-500.0,0.00035616,7]
[403865350,1769608250331,-500.0,0.00035616,7]
[403865351,1769608250340,-500.0,0.00035616,7]
[403865352,1769608250349,-500.0,0.00035616,7]
[403865353,1769608250358,-500.0,0.00035616,7]
[403865354,1769608250367,-500.0,0.00035616,7]
[403865355,1769608250378,-500.0,0.00035616,7]
[403865356,1769608250389,-500.0,0.00035616,7]
[403865357,1769608250399,-362.24408379,0.00035616,7]
[403865358,1769608250411,-500.0,0.00035616,7]
[403865359,1769608250420,-500.0,0.00035616,7]
[403865360,1769608250431,-500.0,0.00035616,7]
[403865361,1769608250441,-500.0,0.00035616,7]
[403865362,1769608250451,-500.0,0.00035616,7]
[403865363,1769608250461,-500.0,0.00035616,7]
[403865364,1769608250471,-208.35387155,0.00035616,7]
[403865365,1769608250480,-507.0,0.00035714,18]
[403865366,1769608250489,-274.61634767,0.0003593,8]
[403865367,1769608250498,-500.0,0.00036411,2]
[403865368,1769608250509,-9328.93705952,0.00036578,2]
[403865369,1769608250519,-10754.82226316,0.00036578,2]
[403865370,1769608250528,-169.05019004,0.00036677,59]
[403865371,1769608250538,-376.73,0.000367,2]
[403865372,1769608250547,-330.97,0.000374,30]
[403865373,1769608250560,-3372.18,0.00037654,49]
[403865374,1769608250569,-249.913,0.00037654,49]
[403865375,1769608250578,-3743.82616473,0.0003792,2]
[403865376,1769608250588,-545.19262454,0.00038451,2]
[403865377,1769608250599,-880.0545839,0.00039088,2]
[403865378,1769608250607,-880.0545839,0.00039088,2]
[403865379,1769608250617,-2446.54693669,0.00039101,2]
[403865380,1769608250626,-1637.26050394,0.00039274,28]
[403865381,1769608250637,-2449.24379577,0.00039274,28]
[403865382,1769608250646,-3313.9062,0.00039274,28]
[403865383,1769608250656,-169.05019004,0.00039517,67]
[403865384,1769608250665,-9328.93705952,0.00039844,2]
[403865385,1769608250674,-10754.82226316,0.00039844,15]
[403865386,1769608250683,-376.73,0.000399,30]
[403865387,1769608250697,-1500.0,0.000404,7]
[403865388,1769608250706,-169.05019004,0.00040938,71]
[403865389,1769608250716,-986.01183667,0.00041,2]
[403865390,1769608250725,-325.42,0.00041096,120]
[403865391,1769608250735,-1381.9,0.000414,14]
[403865392,1769608250744,-500.0,0.00041556,60]
[403865393,1769608250754,-515.26,0.000417,14]
[403865394,1769608250763,-150.0,0.00041781,30]
[403865395,1769608250772,-2390.82801159,0.00041903,7]
[403865396,1769608250782,-500.0,0.00042,120]
[403865397,1769608250791,-456.738324,0.00042039,120]
[403865398,1769608250800,-208.58,0.000421,14]
[403865399,1769608250809,-376.73,0.000421,30]
[403865400,1769608250819,-500.0,0.00042104,60]
[403865401,1769608250828,-3360.0,0.00042112,30]
[403865402,1769608250838,-500.0,0.0004221,30]
[403865403,1769608250847,-150.0,0.00042329,30]
[403865404,1769608250855,-200.0,0.00042388,120]
[403865405,1769608250864,-400.0,0.00042431,120]
[403865406,1769608250873,-260.03466435,0.00042431,120]
[403865407,1769608250882,-391.32349151,0.00042434,14]
[403865408,1769608250891,-391.32349149,0.00042434,14]
[403865409,1769608250900,-391.32349149,0.00042434,14]
[403865410,1769608250909,-391.32349149,0.00042434,14]
[403865411,1769608250919,-391.32349149,0.00042434,14]
[403865412,1769608250928,-391.32349149,0.00042434,14]
[403865413,1769608250937,-391.32349149,0.00042434,14]
[403865414,1769608250946,-391.32349149,0.00042434,14]
[403865415,1769608250955,-391.32349149,0.00042434,14]
[403865416,1769608250964,-391.32349149,0.00042434,14]
[403865417,1769608250973,-391.32349149,0.00042434,14]
[403865418,1769608250983,-391.32349149,0.00042434,14]
[403865419,1769608250993,-391.32349149,0.00042434,14]
[403865420,1769608251001,-391.32349149,0.00042434,14]
[403865421,1769608251011,-543.0,0.000425,120]
[403865422,1769608251021,-3360.0,0.00042546,30]
[403865423,1769608251031,-500.0,0.00042652,60]
[403865424,1769608251040,-1381.9,0.000427,14]
[403865425,1769608251049,-113821.7473185,0.00042719,2]
[403865426,1769608251058,-1970.29682,0.0004277,120]
[403865427,1769608251067,-1970.29682,0.0004277,120]
[403865428,1769608251076,-1970.29682,0.0004277,120]
[403865429,1769608251084,-1970.29682,0.0004277,120]
[403865430,1769608251093,-1970.29682,0.0004277,120]
[403865431,1769608251102,-515.26,0.000429,14]
[403865432,1769608251111,-3360.0,0.0004298,30]
[403865433,1769608251120,-2000.0,0.00042984,3]
[403865434,1769608251129,-9328.93705952,0.0004311,15]
[403865435,1769608251138,-10754.82226316,0.0004311,15]
[403865436,1769608251148,-1500.0,0.00043151,120]
[403865437,1769608251157,-1500.0,0.00043151,120]
[403865438,1769608251166,-1500.0,0.00043151,120]
[403865439,1769608251175,-1500.0,0.00043151,120]
[403865440,1769608251184,-1500.0,0.00043151,120]
[403865441,1769608251193,-1500.0,0.00043151,120]
[403865442,1769608251202,-1500.0,0.00043151,120]
[403865443,1769608251211,-1500.0,0.00043151,120]
[403865444,1769608251220,-1500.0,0.00043151,120]
[403865445,1769608251229,-1500.0,0.00043151,120]
[403865446,1769608251238,-1500.0,0.00043151,120]
[403865447,1769608251248,-1500.0,0.00043151,120]
[403865448,1769608251257,-1500.0,0.00043151,120]
[403865449,1769608251268,-1500.0,0.00043151,120]
[403865450,1769608251277,-1500.0,0.00043151,120]
[403865451,1769608251286,-633.458,0.00043151,120]
[403865452,1769608251294,-898.44608791,0.00043167,120]
[403865453,1769608251303,-1000.0,0.00043174,90]
[403865454,1769608251313,-1000.0,0.00043174,90]
[403865455,1769608251322,-300.0,0.00043178,120]
[403865456,1769608251331,-1970.29682,0.00043199,120]
[403865457,1769608251342,-50000.0,0.000432,56]
[403865458,1769608251351,-50000.0,0.000432,54]
[403865459,1769608251360,-495.84162364,0.000432,60]
[403865460,1769608251993,-4.15837636,0.000432,60]
[403865461,1769608252002,-253.0,0.000432,42]
[403865462,1769608252011,-300.0,0.00043205,120]
[403865463,1769608252020,-151.0,0.00043207,120]
[403865464,1769608252030,-151.0,0.00043207,120]
[403865465,1769608252039,-151.0,0.00043207,120]
[403865466,1769608252048,-4426.02683304,0.0004321,120]
[403865467,1769608274530,10000.01,0.00013715,2]
[403865468,1769608274556,7291.9814,0.00013715,2]
[403865469,1769608296665,2708.0286,0.00013714,2]
[403865470,1769608296696,10000.01,0.00013714,2]
[403865471,1769608296727,10000.01,0.00013714,2]
[403865472,1769608296771,10000.01,0.00013714,2]
[403865473,1769608296817,10000.01,0.00013714,2]
[403865474,1769608296846,10000.01,0.00013714,2]
[403865475,1769608296874,10000.01,0.00013714,2]
[403865476,1769608296902,10000.01,0.00013714,2]
[403865477,1769608296930,10000.01,0.00013714,2]
[403865478,1769608296959,10000.01,0.00013714,2]
[403865479,1769608300232,516.89833152,0.00010587,2]
[403865480,1769608321307,300.0,0.00013713,2]
[403865481,1769608332266,1000.0,0.00013614,2]
[403865482,1769608338204,4118.5559,0.00013614,2]
[403865483,1769608344734,4581.4541,0.00013614,2]
[403865484,1769608344760,10000.01,0.00013614,2]
[403865485,1769608344785,10000.01,0.00013614,2]
[403865486,1769608344809,10000.01,0.00013614,2]
[403865487,1769608344833,10000.01,0.00013614,2]
[403865488,1769608344857,10000.01,0.00013614,2]
[403865489,1769608344881,10000.01,0.00013614,2]
[403865490,1769608344904,10000.01,0.00013614,2]
[403865491,1769608344930,8320.6837,0.00013614,2]
[403865493,1769608392866,151.0,0.00013711,2]
[403865495,1769608431135,1528.3263,0.00013614,2]
[403865496,1769608431158,10000.01,0.00013614,2]
[403865497,1769608431181,10000.01,0.00013614,2]
[403865498,1769608431207,10000.01,0.00013614,2]
[403865499,1769608431231,1738.0764,0.00013614,2]
[403865500,1769608442132,150.0,0.00013713,2]
[403865501,1769608443527,300.0,0.00013713,2]
[403865502,1769608449051,305.81836713,0.00013639,2]
[403865503,1769608461901,1000.0,0.00013614,2]
[403865504,1769608501457,1200.0,0.00013713,2]
[403865505,1769608541895,500.0,0.00013713,2]
[403865506,1769608542584,500.0,0.00013713,2]
[403865507,1769608542622,500.0,0.00013713,2]
[403865508,1769608542935,500.0,0.00013713,2]
[403865509,1769608544478,356.30566884,0.00013713,2]
[403865510,1769608544529,166.15635579,0.00013713,2]
[403865511,1769608544793,500.0,0.00013713,2]
[403865512,1769608544854,500.0,0.00013713,2]
[403865513,1769608544905,500.0,0.00013713,2]
[403865514,1769608544956,458.52133187,0.00013713,2]
[403865519,1769608549227,683.42908486,0.00013713,2]
[403865520,1769608549560,683.42908486,0.00013713,2]
[403865521,1769608549914,683.42908486,0.00013713,2]
[403865522,1769608550231,512.92102179,0.00013713,2]
[403865523,1769608550263,170.50806307,0.00013713,2]
[403865524,1769608550568,683.42908486,0.00013713,2]
[403865525,1769608550920,683.42908486,0.00013713,2]
[403865526,1769608551288,683.42908486,0.00013713,2]
[403865527,1769608551621,683.42908486,0.00013713,2]
[403865528,1769608551977,683.42908486,0.00013713,2]
[403865529,1769608552319,683.42908486,0.00013713,2]
[403865530,1769608552671,683.42908486,0.00013713,2]
[403865531,1769608553006,683.42908486,0.00013713,2]
[403865532,1769608553352,683.42908486,0.00013713,2]
[403865533,1769608553695,683.42908486,0.00013713,2]
[403865534,1769608554033,683.42908486,0.00013713,2]
[403865535,1769608554380,683.42908486,0.00013713,2]
[403865536,1769608554738,683.42908486,0.00013713,2]
[403865537,1769608555090,683.42908486,0.00013713,2]
[403865538,1769608555427,261.49474889,0.00013713,2]
[403865539,1769608555457,421.93433597,0.00013713,2]
[403865540,1769608555788,683.42908486,0.00013713,2]
[403865541,1769608556139,683.42908486,0.00013713,2]
[403865542,1769608556979,683.42908486,0.00013713,2]
[403865543,1769608557320,683.42908486,0.00013713,2]
[403865544,1769608558544,683.42908486,0.00013713,2]
[403865545,1769608558615,683.42908486,0.00013713,2]
[403865546,1769608558681,683.42908486,0.00013713,2]
[403865547,1769608558746,683.42908486,0.00013713,2]
[403865548,1769608559107,683.42908486,0.00013713,2]
[403865549,1769608559445,683.42908486,0.00013713,2]
[403865550,1769608559891,683.42908486,0.00013713,2]
[403865551,1769608560289,683.42908486,0.00013713,2]
[403865552,1769608560626,683.42908486,0.00013713,2]
[403865553,1769608560988,683.42908486,0.00013713,2]
[403865554,1769608561289,10.06847599,0.00013713,2]
[403865555,1769608561321,289.93152401,0.00013713,2]
[403865556,1769608566358,683.42908486,0.00013713,2]
[403865557,1769608568433,2232.64228151,0.00013639,2]
[403865559,1769608581738,6794.00710962,0.00013614,2]
[403865560,1769608581768,10000.01,0.00013614,2]
[403865561,1769608581797,10000.01,0.00013614,2]
[403865562,1769608581826,6472.40559038,0.00013614,2]
[403865563,1769608606325,3527.60440962,0.00013621,2]
[403865564,1769608606349,5845.90559038,0.00013621,2]
[403865565,1769608615893,1000.0,0.00013614,2]
[403865566,1769608621934,150.0,0.00013713,2]
[403865567,1769608622491,300.0,0.00013713,2]
[403865568,1769608622697,300.0,0.00013713,2]
[403865569,1769608623784,500.0,0.00013713,2]
[403865570,1769608624225,500.0,0.00013713,2]
[403865571,1769608624992,500.0,0.00013713,2]
[403865572,1769608625034,500.0,0.00013713,2]
[403865573,1769608625075,404.10440962,0.00013713,2]
[403865574,1769608625103,95.89559038,0.00013713,2]
[403865575,1769608625144,500.0,0.00013713,2]
[403865576,1769608625234,500.0,0.00013713,2]
[403865577,1769608625353,500.0,0.00013713,2]
[403865578,1769608625396,500.0,0.00013713,2]
[403865579,1769608625437,500.0,0.00013713,2]
[403865580,1769608625481,500.0,0.00013713,2]
[403865581,1769608625556,500.0,0.00013713,2]
[403865582,1769608625599,500.0,0.00013713,2]
[403865583,1769608625642,500.0,0.00013713,2]
[403865584,1769608625686,500.0,0.00013713,2]
[403865585,1769608625736,500.0,0.00013713,2]
[403865586,1769608625786,500.0,0.00013713,2]
[403865587,1769608625831,500.0,0.00013713,2]
[403865588,1769608625880,500.0,0.00013713,2]
[403865589,1769608625923,500.0,0.00013713,2]
[403865590,1769608626004,500.0,0.00013713,2]
[403865591,1769608626073,500.0,0.00013713,2]
[403865592,1769608626111,500.0,0.00013713,2]
[403865593,1769608626151,500.0,0.00013713,2]
[403865594,1769608626237,404.11440962,0.00013713,2]
[403865595,1769608626266,95.88559038,0.00013713,2]
[403865596,1769608626312,500.0,0.00013713,2]
[403865597,1769608626353,500.0,0.00013713,2]
[403865598,1769608626394,500.0,0.00013713,2]
[403865599,1769608626446,495.68764031,0.00013713,2]
[403865600,1769608626497,500.0,0.00013713,2]
[403865601,1769608626540,500.0,0.00013713,2]
[403865602,1769608626610,500.0,0.00013713,2]
[403865603,1769608626652,500.0,0.00013713,2]
[403865604,1769608626712,500.0,0.00013713,2]
[403865605,1769608627150,500.0,0.00013713,2]
[403865606,1769608627193,500.0,0.00013713,2]
[403865607,1769608627239,500.0,0.00013713,2]
[403865608,1769608627287,500.0,0.00013713,2]
[403865609,1769608627331,500.0,0.00013713,2]
[403865610,1769608627374,500.0,0.00013713,2]
[403865611,1769608627415,500.0,0.00013713,2]
[403865612,1769608627459,500.0,0.00013713,2]
[403865613,1769608627511,500.0,0.00013713,2]
[403865614,1769608627552,181.73087486,0.00013639,2]
[403865615,1769608627596,500.0,0.00013713,2]
[403865616,1769608627653,226.70589445,0.00013713,2]
[403865617,1769608627686,273.29410555,0.00013713,2]
[403865618,1769608628670,500.0,0.00013676,2]
[403865619,1769608628794,500.0,0.00013714,2]
[403865620,1769608637372,151.0,0.00013714,2]
[403865621,1769608638056,151.0,0.00013714,2]
[403865622,1769608638675,151.0,0.00013714,2]